[Event "German Masters 2022"]
[Site "Magdeburg"]
[Date "2022.08.17"]
[Round "2.1"]
[White "Keymer, Vincent"]
[Black "Braun, Arik"]
[Result "1-0"]
[ECO "E10"]
[WhiteElo "2686"]
[BlackElo "2594"]
[Annotator "TA"]
[PlyCount "183"]
[EventDate "2022.08.16"]
[EventType "tourn"]
[EventCountry "GER"]
[SourceTitle "playchess.com"]
[Source "ChessBase"]
[SourceQuality "1"]
[TimeControl "40/5400+30:1800+30"]

{[%evp 14,183,33,0,22,5,35,31,34,48,27,27,52,60,55,40,100,25,36,39,64,35,81,84,84,73,70,27,27,-43,-43,-37,-28,-48,-29,-42,-41,-70,0,-58,-58,-68,-45,-254,-244,-261,-242,-249,-235,-287,-272,-264,-283,-260,-260,-248,-25,-24,-25,-34,-25,-39,-28,-21,-28,-12,-44,-33,-40,-32,0,0,0,-8,0,0,0,0,0,0,0,0,0,0,8,8,39,8,48,48,91,91,91,91,91,83,83,76,116,76,76,69,117,116,109,69,179,179,179,103,179,179,179,179,179,179,179,179,179,179,175,167,165,127,180,180,179,179,179,179,179,179,165,165,164,164,162,118,177,172,165,124,29958,29963,29971,29973,29972,29967,29985,29986,29986,29987,29987,29975,29981,29982,29982,29983,29983,29984,29984,29985,29985,29986,29982,29983,29986,29987,29987,29988,29996,0]} 1. d4 {[%emt 0:00:05]} Nf6 {[%emt 0:00:07]} 2. c4 {[%emt 0:00:03]} e6 {[%emt 0:00:04]} 3. Nf3 {[%emt 0:00:03]} a6 {[%emt 0:00:11]} 4. Nc3 {[%emt 0:00:10]} d5 {[%emt 0:00:07]} 5. cxd5 {[%emt 0:00:05]} exd5 {[%emt 0:00:05]} 6. Bg5 {[%emt 0:00:04]} Be6 {[%emt 0:00:15]} 7. e3 {[%emt 0:00:05]} Nbd7 {[%emt 0:00:26]} 8. Bf4 {[%emt 0:00:24]} c6 {[%emt 0:19:18]} 9. Bd3 {[%emt 0:01:25]} Bg4 {[%emt 0:02:45]} 10. h3 {[%emt 0:15:19]} Bh5 {[%emt 0:00:57]} 11. Qb3 {[%emt 0:00:07]} Bxf3 {[%emt 0:03:13]} 12. gxf3 {[%emt 0:00:12]} b5 {[%emt 0:01:27]} 13. O-O-O {[%emt 0:26:56]} Be7 {[%emt 0:10:58]} 14. Qc2 {[%emt 0:05:21]} Nh5 {[%emt 0:15:45]} (14... Rc8 $14) 15. Bh2 {[%emt 0:01:20]} (15. Be5 $16) 15... g6 $11 {[%emt 0:00:40]} 16. Rhg1 {[%emt 0:07:01]} Rc8 {[%emt 0:03:12]} 17. Kb1 {[%emt 0:00:27]} (17. Be5 $5 {[%cal Re5h8]} Nxe5 18. dxe5 $11) 17... Nf8 {[%emt 0:01:05]} (17... Ng7 $14 {deserves consideration.}) 18. Be5 $16 {[%emt 0:06:57]} f6 {[%emt 0:02:28]} 19. Bh2 {[%emt 0:00:04]} Qd7 {[%emt 0:01:00]} 20. e4 {[%emt 0:04:22]} Ne6 $1 {[%emt 0:02:09]} 21. exd5 {[%emt 0:05:46]} ({White should play} 21. Qc1 $11) 21... cxd5 $15 {[%emt 0:00:53]} 22. Qb3 {[%emt 0:02:34]} Nhf4 {[%emt 0:03:08]} (22... Nxd4 23. Qxd5 Qxd5 24. Nxd5 Nxf3 25. Rge1 $1 Nxe1 26. Rxe1 $14) 23. Rge1 {[%emt 0:02:40]} Kf8 {[%emt 0:08:42]} 24. Bf1 {[%emt 0:02:03]} Kg7 {[%emt 0:02:35]} 25. a4 {[%emt 0:04:41]} b4 {[%emt 0:02:46]} ({Better is} 25... bxa4 $1 $15 26. Qxa4 Qxa4 27. Nxa4 Bb4) 26. Na2 {[%emt 0:01:05]} (26. Ne2 $11 Nxe2 27. Rxe2) 26... Rc6 $15 {[%emt 0:02:11]} 27. Nc1 {[%emt 0:06:46]} (27. Nxb4 $2 Rb6 28. Bxf4 Nxf4 29. Rxe7+ Qxe7 30. Nxd5 Nxd5 31. Qxd5 Rhb8 $19) 27... Rhc8 {[%emt 0:02:13]} 28. Qe3 $2 {[%emt 0:00:37]} ({White must play} 28. h4 $1 $15) 28... Bd6 $19 {[%emt 0:02:18]} 29. Nb3 {[%emt 0:01:02]} Rc3 $1 {[%emt 0:04:31]} 30. bxc3 {[%emt 0:00:54]} Rxc3 {[%emt 0:00:05]} 31. Nc1 {[%emt 0:03:43]} Rxe3 {[%emt 0:01:33]} 32. fxe3 {[%emt 0:00:01]} Ng2 {[%emt 0:02:26]} (32... Qxa4 33. exf4 Nxf4 34. Rd2 $14) 33. Bxg2 {[%emt 0:00:40]} Bxh2 {[%emt 0:00:05]} 34. f4 {[%emt 0:01:23]} Bxf4 $2 {[%emt 0:01:07]} (34... Nc7 $19 35. Nb3 Qxa4) 35. exf4 $11 {[%emt 0:00:07]} Nxf4 {[%emt 0:00:04]} 36. Bf1 {[%emt 0:00:52]} Qxa4 {[%emt 0:00:44]} 37. Re7+ {[%emt 0:01:20]} Kh6 $1 {[%emt 0:00:26]} 38. Rd2 {[%emt 0:00:20]} a5 {[%emt 0:02:04]} 39. Rf2 {[%emt 0:00:56]} Nh5 {[%emt 0:02:02]} 40. Ra2 $1 {[%emt 0:01:09]} Qd1 {[%emt 0:00:35]} 41. Be2 {[%emt 0:01:51]} Qxd4 {[%emt 0:03:41]} (41... Qe1 $5 {[%cal Rb4b3]} 42. Rxa5 Nf4 $11) 42. Bxh5 {[%emt 0:00:30]} Kxh5 {[%emt 0:03:07]} 43. Rxa5 {[%emt 0:04:02]} f5 {[%emt 0:03:04]} 44. Rxh7+ {[%emt 0:13:50]} Kg5 {[%emt 0:00:04]} 45. h4+ {[%emt 0:03:02]} Kg4 {[%emt 0:00:07]} 46. Re7 {[%emt 0:00:03]} Kxh4 {[%emt 0:07:57]} (46... f4 $5 47. Ra6 f3 48. Rxg6+ Kh3 $11) 47. Ra2 {[%emt 0:00:25]} Qg1 {[%emt 0:02:14]} 48. Rd2 {[%emt 0:05:20]} Kg5 {[%emt 0:03:58]} 49. Rxd5 {[%emt 0:00:37]} b3 {[%emt 0:00:37]} 50. Re2 {[%emt 0:02:40]} b2 {[%emt 0:01:08]} (50... Qh1 51. Red2 $16) 51. Kxb2 {[%emt 0:00:48]} Kh6 {[%emt 0:00:34]} 52. Nd3 {[%emt 0:01:34]} Qb6+ {[%emt 0:01:14]} 53. Kc3 {[%emt 0:00:13]} Qc6+ {[%emt 0:00:05]} 54. Rc5 {[%emt 0:00:04]} Qf6+ {[%emt 0:00:14]} 55. Kd2 {[%emt 0:00:54]} Qa1 {[%emt 0:01:35]} 56. Re1 {[%emt 0:01:04]} ({Don't play} 56. Rh2+ Kg5 57. Rg2+ Kh6 $18) 56... Qa2+ {[%emt 0:00:27]} 57. Ke3 {[%emt 0:00:05]} Qa7 {[%emt 0:00:06]} (57... Qe6+ $14 58. Re5 Qb6+ 59. Kd2 Qd4) 58. Rh1+ $16 {[%emt 0:00:06]} Kg7 {[%emt 0:00:38]} 59. Rhc1 {[%emt 0:00:03]} Kh6 {[%emt 0:00:31]} (59... Qe7+ $14 60. Kd2 Qg5+ 61. Kc3 (61. Kc2 Qg2+ 62. Kc3 Qa8 $18) 61... Qf6+ 62. Kc2 Qd4) 60. Ke2 $18 {[%emt 0:00:38]} Qa2+ {[%emt 0:00:23]} 61. Kf3 {[%emt 0:00:44]} (61. Kf1 $1 $18) 61... Qa3 {[%emt 0:00:39]} (61... Qb3 $16) 62. R1c3 $18 {[%emt 0:00:09]} Qa1 {[%emt 0:00:26]} 63. Kg2 {[%emt 0:00:40]} Qd1 {[%emt 0:00:56]} 64. Nf2 {[%emt 0:00:04]} Qd6 {[%emt 0:00:40]} 65. Kg1 {[%emt 0:00:29]} Qa6 {[%emt 0:02:21]} 66. Rc6 {[%emt 0:00:43]} Qa1+ {[%emt 0:00:08]} 67. Kg2 {[%emt 0:00:05]} Qa8 {[%emt 0:00:19]} 68. Kg3 {[%emt 0:00:32]} Qa1 {[%emt 0:00:36]} (68... Qb8+ $16 69. Rc7 Kh5) 69. Rd3 $1 $18 {[%emt 0:01:49]} Qg1+ {[%emt 0:02:01]} 70. Kf3 {[%emt 0:00:04]} Qg5 {[%emt 0:00:26]} 71. Rdd6 {[%emt 0:00:47]} Qh5+ {[%emt 0:00:20]} 72. Kg2 {[%emt 0:00:18]} Qg5+ {[%emt 0:00:14]} 73. Kf1 {[%emt 0:00:04]} Qg3 {[%emt 0:00:29]} 74. Rd3 {[%emt 0:00:16]} Qe5 {[%emt 0:00:35]} 75. Kg2 {[%emt 0:00:35]} Qe8 {[%emt 0:01:55]} (75... Qe7 $16 76. Rg3 Qe8) 76. Rdd6 $18 {[%emt 0:00:06]} Kh5 {[%emt 0:03:58]} 77. Re6 {[%emt 0:00:08]} Qg8 $2 {[%emt 0:00:47][%mdl 8192] [#]} (77... Qa8 $16 78. Rxg6 Kh4) 78. Kf3 $1 {[%emt 0:03:00]} Qd8 {[%emt 0:01:59]} 79. Rxg6 {[%emt 0:00:21]} Qd5+ {[%emt 0:00:03]} 80. Kg3 {[%emt 0:00:58]} f4+ {[%emt 0:00:26]} 81. Kxf4 {[%emt 0:00:43]} Qd2+ {[%emt 0:01:30] [#]} 82. Kf3 $1 {[%emt 0:00:05]} Qd5+ {[%emt 0:00:09]} 83. Ke2 {[%emt 0:00:35]} Qa2+ {[%emt 0:00:45]} 84. Ke3 {[%emt 0:00:14]} Qa7+ {[%emt 0:00:34]} 85. Kf3 {[%emt 0:00:23]} Qf7+ {[%emt 0:00:23]} 86. Rgf6 {[%emt 0:00:05]} Qd5+ {[%emt 0:00:11]} 87. Ke3 {[%emt 0:01:09]} Qg5+ {[%emt 0:00:55]} 88. Ke4 {[%emt 0:00:08]} Qd2 {[%emt 0:00:55]} 89. Nd3 {[%emt 0:00:43]} Qg2+ {[%emt 0:00:35]} 90. Rf3 {[%emt 0:01:35]} Qe2+ {[%emt 0:00:09]} 91. Kf4 {[%emt 0:00:04]} Qh2+ {[%emt 0:00:59]} 92. Ke4 $2 (92. Kf5 {mates} Qg3 93. Rxg3 Kh4 94. Rg4+ Kh5 95. Nf4#) 1-0

[Event "German Masters 2022"]
[Site "Magdeburg"]
[Date "2022.08.17"]
[Round "2.2"]
[White "Huschenbeth, Niclas"]
[Black "Svane, Frederik"]
[Result "0-1"]
[ECO "C67"]
[WhiteElo "2610"]
[BlackElo "2521"]
[Annotator "TA"]
[PlyCount "76"]
[EventDate "2022.08.16"]
[EventType "tourn"]
[EventCountry "GER"]
[SourceTitle "playchess.com"]
[Source "ChessBase"]
[SourceQuality "1"]
[TimeControl "40/5400+30:1800+30"]

{[%evp 18,76,19,19,19,16,21,20,16,8,6,8,7,0,3,-23,-37,-53,-50,-81,-88,-89,-89,-89,-89,-89,-89,-89,-90,-92,-79,-79,-79,-79,-79,-77,-58,-59,-64,-66,-60,-89,-56,-69,-63,-56,0,-55,-60,-80,0,-40,-43,-1365,-688,-29986,-29987,-29987,-29988,-29988,-29989]} 1. e4 {[%emt 0:00:11]} e5 {[%emt 0:00:19]} 2. Nf3 {[%emt 0:00:09]} Nc6 {[%emt 0:00:29]} 3. Bb5 {[%emt 0:00:20]} Nf6 {[%emt 0:00:09]} 4. O-O {[%emt 0:00:10][%cal Bh1f1,Bf1e1,Be1e5][%mdl 32]} Nxe4 {[%emt 0:00:06]} 5. Re1 {[%emt 0:00:10]} Nd6 {[%emt 0:00:07]} 6. Nxe5 {[%emt 0:00:08]} Be7 {[%emt 0:00:10]} 7. Bf1 {[%emt 0:00:31]} Nxe5 {[%emt 0:00:09]} 8. Rxe5 {[%emt 0:00:06]} O-O {[%emt 0:00:07]} 9. d4 {[%emt 0:00:13]} Bf6 {[%emt 0:00:09]} 10. Re1 {[%emt 0:00:27]} Re8 {[%emt 0:00:10] C67: Ruy Lopez: Berlin Defence: 4 0-0 Nxe4.} 11. c3 {[%emt 0:00:06]} Rxe1 {[%emt 0:00:12]} 12. Qxe1 {[%emt 0:00:04]} Ne8 {[%emt 0:00:09] The position is equal.} 13. d5 {[%emt 0:00:25]} d6 {[%emt 0:05:52]} 14. Be3 {[%emt 0:00:05] [#]} c6 $146 {[%emt 0:05:44]} ({Predecessor:} 14... Bf5 15. Qd2 a5 16. a4 Be5 17. Na3 Qh4 18. g3 Qxa4 19. f4 Bf6 20. Bc4 Qd7 {0-1 (28) Macovei,A (2453)-Antipov,M (2584) Chess.com INT 2020}) 15. Qd2 {[%emt 0:10:09]} Nc7 {[%emt 0:07:15]} 16. c4 {[%emt 0:10:21]} cxd5 {[%emt 0:07:22]} 17. cxd5 {[%emt 0:00:05] [#]} Nxd5 $1 {[%emt 0:03:20]} 18. Qxd5 {[%emt 0:00:05] Black must now prevent Nc3.} (18. Bd4 Be6) 18... Bxb2 {[%emt 0:00:10]} 19. Bd4 {[%emt 0:00:09]} Be6 {[%emt 0:00:48]} 20. Qe4 {[%emt 0:00:05] [#]} Bf5 $1 {[%emt 0:01:58][%mdl 64] Deflection} 21. Qxf5 {[%emt 0:17:14]} Bxd4 {[%emt 0:00:18]} 22. Nc3 {[%emt 0:00:10]} Bxc3 {[%emt 0:00:07]} 23. Rc1 {[%emt 0:01:47]} Be5 {[%emt 0:14:42]} 24. Bc4 {[%emt 0:04:32]} Qe7 {[%emt 0:07:13]} 25. Bd5 {[%emt 0:05:07]} g6 {[%emt 0:00:43]} 26. Qf3 {[%emt 0:10:07]} Rb8 {[%emt 0:04:46]} 27. h4 {[%emt 0:10:30]} b5 {[%emt 0:02:05][%cal Bb7b5,Bb5b4][%mdl 32]} 28. h5 {[%emt 0:03:57]} b4 {[%emt 0:22:21]} 29. Rc6 {[%emt 0:03:15]} a5 {[%emt 0:07:52]} 30. Ra6 {[%emt 0:05:54]} Rc8 {[%emt 0:02:30] ( -> ...Rc1+)} 31. g3 $1 {[%emt 0:00:43]} Kg7 {[%emt 0:04:57]} ({Reject} 31... Rc1+ 32. Kg2 $11) (31... Rc3 $15 32. Qe4 Kg7 33. hxg6 hxg6 34. Rxa5 Rc5) 32. Rxa5 {[%emt 0:06:37]} (32. Qe3 $11) 32... Rc3 $36 {[%emt 0:02:22][%mdl 2048] Black has some pressure.} 33. Qg4 {[%emt 0:08:30]} Rd3 {[%emt 0:01:37]} (33... Qf6 $17 {Hoping for ...Rc2.} 34. Ra7 {[#]} Rxg3+ $3 {[%mdl 512]} 35. fxg3 Bd4+ 36. Kh2 Bxa7 37. Qxb4 Qe5) 34. hxg6 {[%emt 0:03:23]} hxg6 {[%emt 0:00:17][%cal Oe5g3]} 35. Ra8 $2 {[%emt 0:01:40][%mdl 8192] White does not recover from this.} Rxd5 {[%emt 0:00:19]} 36. Qh3 {[%emt 0:00:08][%csl Ga8][%cal Rh3h8]} Rd1+ {[%emt 0:00:53] Black mates.} 37. Kh2 {[%emt 0:00:01] [#]} Bxg3+ $1 {[%emt 0:00:15]} 38. Qxg3 {[%emt 0:00:13]} Qe4 {[%emt 0:00:08] Weighted Error Value: White=0.55/Black=0.39} 0-1

[Event "German Masters 2022"]
[Site "Magdeburg"]
[Date "2022.08.17"]
[Round "2.3"]
[White "Svane, Rasmus"]
[Black "Kollars, Dmitrij"]
[Result "1/2-1/2"]
[ECO "C50"]
[WhiteElo "2649"]
[BlackElo "2648"]
[Annotator "TA"]
[PlyCount "66"]
[EventDate "2022.08.16"]
[EventType "tourn"]
[EventCountry "GER"]
[SourceTitle "playchess.com"]
[Source "ChessBase"]
[SourceQuality "1"]
[TimeControl "40/5400+30:1800+30"]

{[%evp 10,66,19,20,31,12,18,14,17,8,0,0,21,13,38,21,32,9,31,10,14,0,0,0,0,0,8,0,0,0,16,15,26,-1,0,0,0,0,43,39,53,47,56,31,59,0,0,0,19,25,23,0,0,0,0,0,0,0,0]} 1. e4 {[%emt 0:00:03]} e5 {[%emt 0:01:51]} 2. Nf3 {[%emt 0:00:09]} Nc6 {[%emt 0:00:04]} 3. Bc4 {[%emt 0:00:09]} Nf6 {[%emt 0:00:31]} 4. d3 {[%emt 0:00:07]} Bc5 {[%emt 0:00:32]} 5. c3 {[%emt 0:00:31]} d6 {[%emt 0:00:44]} 6. O-O {[%emt 0:00:10]} a5 {[%emt 0:00:48] C54: Giuoco Piano: 4 c3 Nf6, main lines with 5 d4 and 5 d3.} 7. Re1 {[%emt 0:00:26]} (7. Bg5 $5 {[%cal Rd3d4]}) 7... O-O {[%emt 0:00:31]} 8. h3 {[%emt 0:00:23]} h6 {[%emt 0:01:06]} 9. Nbd2 {[%emt 0:02:08]} Be6 {[%emt 0:00:18]} 10. Bb5 {[%emt 0:00:44]} Nd7 {[%emt 0:01:08]} 11. Nf1 {[%emt 0:03:26] Threatening d4.} d5 {[%emt 0:00:47] [#]} (11... f5 {seems wilder.} 12. exf5 Bxf5 13. d4 Bb6) 12. Ne3 $146 {[%emt 0:10:19]} ({Predecessor:} 12. Be3 dxe4 13. dxe4 Qe7 14. Qe2 Rfd8 15. Red1 a4 16. Qc2 a3 17. b4 Bd6 18. N1d2 {1-0 (38) So,W (2776)-Radjabov,T (2753) Stavanger 2022}) 12... dxe4 {[%emt 0:00:43]} 13. dxe4 {[%emt 0:00:11]} Re8 {[%emt 0:04:36]} 14. Qc2 {[%emt 0:06:48]} Na7 {[%emt 0:11:57][%cal Bc6a7,Ba7c8,Bc8d6][%mdl 32]} 15. Bf1 {[%emt 0:07:51]} Nc8 {[%emt 0:10:14]} 16. Ng4 {[%emt 0:16:02]} f6 {[%emt 0:01:47]} 17. Ne3 {[%emt 0:04:46]} Nd6 {[%emt 0:04:38]} 18. Nh4 {[%emt 0:05:33]} Kh7 {[%emt 0:05:52]} 19. Nhf5 {[%emt 0:12:40]} g6 {[%emt 0:07:32]} 20. Nxd6 {[%emt 0:01:23]} Bxd6 {[%emt 0:00:23]} 21. Nc4 {[%emt 0:04:04]} Bf8 {[%emt 0:04:46]} 22. Be3 {[%emt 0:00:22]} Qe7 {[%emt 0:00:40]} 23. b3 {[%emt 0:02:46]} b5 {[%emt 0:06:20]} 24. Nb2 {[%emt 0:01:23]} Reb8 {[%emt 0:02:42][%cal Oa5a4]} 25. c4 {[%emt 0:02:27]} c6 {[%emt 0:00:40]} 26. Red1 {[%emt 0:05:09]} Nc5 {[%emt 0:05:56]} 27. Nd3 {[%emt 0:01:41]} (27. cxb5 $14 cxb5 28. Rac1) 27... Nxd3 $11 {[%emt 0:00:40]} 28. Bxd3 {[%emt 0:00:25]} a4 {[%emt 0:06:31]} 29. cxb5 {[%emt 0:05:02]} cxb5 {[%emt 0:00:06]} 30. Qc6 {[%emt 0:01:32]} Bd7 {[%emt 0:02:36] The position is equal.} 31. Qd5 {[%emt 0:03:02]} Be6 {[%emt 0:01:46]} 32. Qc6 {[%emt 0:00:08]} Bd7 {[%emt 0:00:07]} 33. Qd5 {[%emt 0:00:07]} Be6 {[%emt 0:00:23] Weighted Error Value: White=0.08 (flawless) /Black=0.07 (flawless)} 1/2-1/2

[Event "German Masters 2022"]
[Site "Magdeburg"]
[Date "2022.08.17"]
[Round "2.4"]
[White "Rosner, Jonas"]
[Black "Fridman, Daniel"]
[Result "0-1"]
[ECO "A48"]
[WhiteElo "2478"]
[BlackElo "2599"]
[Annotator "TA"]
[PlyCount "104"]
[EventDate "2022.08.16"]
[EventType "tourn"]
[EventCountry "GER"]
[SourceTitle "playchess.com"]
[Source "ChessBase"]
[SourceQuality "1"]
[TimeControl "40/5400+30:1800+30"]

{[%evp 12,104,25,20,20,16,23,22,58,63,63,54,59,57,72,33,30,43,42,24,75,0,0,-74,-79,-96,-97,-94,-53,-41,-14,-16,-12,-10,-10,-4,-20,-14,-12,-11,-16,-85,-70,-162,-66,-32,-70,-75,-12,-14,2,2,3,10,100,89,87,4,104,0,0,0,0,0,0,-365,-140,-147,-103,-274,-108,-321,-315,-514,-508,-478,-475,-1260,-1231,-1020,-1019,-29964,-29967,-29987,-29988,-29988,-29989,-29992,-29993,-29993,-29994,-29994,-29989,-29995,-29996]} 1. d4 {[%emt 0:00:04]} Nf6 {[%emt 0:01:11]} 2. Nf3 {[%emt 0:00:39]} g6 {[%emt 0:00:40]} 3. c4 {[%emt 0:00:54]} Bg7 {[%emt 0:00:21]} 4. e3 {[%emt 0:01:24][%cal Be2e3,Be3e4,Be4d5][%mdl 32]} O-O {[%emt 0:00:24]} 5. Be2 {[%emt 0:00:24]} c5 {[%emt 0:01:39]} 6. d5 {[%emt 0:01:09]} d6 {[%emt 0:04:12]} 7. Nc3 {[%emt 0:01:21]} Na6 {[%emt 0:01:55] E61: King's Indian: Early deviations for White, including Smyslov System.} 8. O-O {[%emt 0:01:34]} Nc7 {[%emt 0:00:11]} 9. e4 {[%emt 0:05:28]} Bg4 {[%emt 0:06:24] The position is equal.} 10. h3 {[%emt 0:01:56]} Bxf3 {[%emt 0:00:09]} 11. Bxf3 {[%emt 0:00:04]} a6 {[%emt 0:03:34]} 12. a4 {[%emt 0:04:33][%cal Ba2a4,Ba4a5][%mdl 32] [#] Prevents b5.} e6 $146 {[%emt 0:10:53]} ({Predecessor:} 12... Rb8 13. Be2 e6 14. Bf4 e5 15. Be3 a5 16. f4 exf4 17. Bxf4 Nfe8 18. Qd2 Be5 {½-½ (46) Parvanyan,A (2458)-Finek,V (2344) Pardubice 2020}) 13. a5 {[%emt 0:05:15]} exd5 {[%emt 0:00:26]} 14. exd5 {[%emt 0:01:35]} Nd7 {[%emt 0:01:07]} 15. Qc2 {[%emt 0:02:54]} f5 {[%emt 0:04:12]} (15... Ne8 $11 {keeps the balance.}) 16. Re1 {[%emt 0:08:25]} (16. Ne2 $16) 16... Qh4 $11 {[%emt 0:05:20]} 17. Bd2 {[%emt 0:15:33]} (17. Ra3 $1 $11) 17... Bd4 $1 $17 {[%emt 0:03:42]} (17... Ne5 18. Be2 $11) 18. Nd1 {[%emt 0:04:00]} Ne5 {[%emt 0:00:59]} 19. Be2 {[%emt 0:04:13]} f4 {[%emt 0:08:41] ...f3 is the strong threat. Black is much more active.} 20. Bf1 $1 {[%emt 0:01:18]} (20. Qe4 $2 Rae8 21. Bc3 Qg5 $19) 20... g5 {[%emt 0:04:13]} 21. Ra3 {[%emt 0:06:17]} Rae8 {[%emt 0:08:56]} 22. Re4 {[%emt 0:03:01]} Re7 {[%emt 0:02:42] Threatening ...Ne8.} 23. Bc3 {[%emt 0:04:12]} Bxc3 {[%emt 0:01:12]} 24. Rxc3 {[%emt 0:03:30]} Ne8 {[%emt 0:03:48] Threatens to win with ...Nf6.} 25. Ne3 $1 {[%emt 0:03:53][%cal Ob2b4]} Rff7 {[%emt 0:01:34][%cal Of4e3]} 26. g3 {[%emt 0:05:36]} (26. b4 $11) 26... Qh5 $1 {[%emt 0:09:54]} (26... Nf3+ $2 27. Kh1 Qh5 28. g4 $18) 27. g4 {[%emt 0:03:50]} (27. Ng4 $1 $15) 27... Qg6 {[%emt 0:02:32]} ({Don't take} 27... Nf3+ 28. Kh1 Qg6 29. Rxe7 (29. Nf5 Rxe4 30. Qxe4 Ne5 $11) 29... Rxe7 30. Nf5 $18) (27... Qh6 $1 $19 28. Nf5 Rxf5 29. gxf5 Nf6 30. Rxe5 (30. Re2 $2 g4 $19) 30... Rxe5) 28. Nf5 $15 {[%emt 0:00:22]} Rxf5 {[%emt 0:00:34]} 29. gxf5 {[%emt 0:00:03]} Qxf5 {[%emt 0:00:08]} ({Better is} 29... Qg7 $1 $17 {White should prevent ...Nf6.} 30. Bg2 Nf6) 30. Kh1 $1 $11 {[%emt 0:03:42]} Ng7 {[%emt 0:01:11][%cal Be8g7,Bg7f5,Bf5d4][%mdl 32]} 31. Re1 {[%emt 0:01:17]} Qf6 {[%emt 0:02:16]} 32. b4 $1 {[%emt 0:03:03]} cxb4 {[%emt 0:01:42]} (32... Nf5 $1 $11 {remains equal.} 33. bxc5 dxc5) 33. Rb3 $16 {[%emt 0:00:02]} Nf5 {[%emt 0:05:14]} 34. Rxb4 {[%emt 0:00:37] Black must now prevent Qb2.} Nd4 {[%emt 0:01:15] [#]} 35. Qb2 {[%emt 0:02:23]} ({White has to play} 35. Qb1 $1 $16) 35... Nd3 $11 {[%emt 0:02:50][%mdl 64] Discovered Attack, Double Attack} 36. Rxe7 {[%emt 0:00:35] Intending Re8+ and mate.} Nxb2 {[%emt 0:01:48] Dancing on a razor blade. Pair of Knights!} 37. Rbxb7 {[%emt 0:00:02] aiming for Re8+.} Qf8 {[%emt 0:00:12] Inhibits Re8. Hoping for ...Nd1.} 38. Re4 $2 {[%emt 0:01:31][%mdl 8192] [#]} (38. c5 $11 Nf5 39. Re6) 38... Na4 $1 {[%emt 0:00:40]} 39. Rxd4 $17 {[%emt 0:01:50]} Nc5 $36 {[%emt 0:00:30][%mdl 2048] Black has strong initiative.} 40. Rb6 {[%emt 0:01:19]} (40. Rc7 $17) 40... Qe7 $2 {[%emt 0:00:34]} (40... Qf6 $19 41. Rd2 g4 42. hxg4 f3) 41. Rd1 {[%emt 0:02:43]} (41. Kg1 $17) 41... g4 $19 {[%emt 0:02:40][%cal Bg5g4,Bg4g3,Bg3f2][%mdl 32]} 42. Rbb1 $2 {[%emt 0:04:27]} (42. Rb2 {was forced.}) 42... Qe4+ {[%emt 0:04:05]} 43. Kg1 {[%emt 0:04:51]} g3 {[%emt 0:00:39]} 44. Re1 {[%emt 0:04:41]} (44. Rb2 $142 gxf2+ 45. Rxf2) 44... Qd4 {[%emt 0:01:26]} 45. Re2 {[%emt 0:00:48]} gxf2+ {[%emt 0:07:41]} 46. Kh1 {[%emt 0:05:52]} Ne4 {[%emt 0:00:26] Black mates.} 47. Reb2 {[%emt 0:01:26]} f3 {[%emt 0:00:57]} 48. Rb8+ {[%emt 0:01:32]} Kg7 {[%emt 0:00:07]} 49. Re8 {[%emt 0:00:49]} Ng3+ {[%emt 0:00:23]} 50. Kh2 {[%emt 0:00:02]} Nxf1+ {[%emt 0:00:21]} 51. Rxf1 {[%emt 0:00:02]} Qf4+ {[%emt 0:00:10]} 52. Kh1 {[%emt 0:00:01]} Qg3 {[%emt 0:00:09] Weighted Error Value: White=0.54/Black=0.18 (very precise)} 0-1